[Event "Late Titled Tuesday Blitz February 8 2022"]
[White "Rorrer, Grayson"]
[Black "Pourkashiyan, Atousa"]
[WhiteFideId "30944996"]
[BlackFideId "12502014"]
[WhiteElo "2122"]
[BlackElo "2247"]
[Result "0-1"]
[Round "04"]
[TimeControl "180+1"]
[Date "2022.02.09"]
[WhiteClock "0:00:23"]
[BlackClock "0:00:26"]

1. e4 {[%clk 0:03:00]}  e5 {[%clk 0:02:35]} 2. Nc3 {[%clk 0:02:59]}  Nf6 {[%clk 0:02:35]} 3. d4 {[%clk 0:02:59]}  exd4 {[%clk 0:02:30]} 4. Qxd4 {[%clk 0:03:00]}  Nc6 {[%clk 0:02:28]} 5. Qd3 {[%clk 0:03:00]}  Bb4 {[%clk 0:02:28]} 6. Bd2 {[%clk 0:03:01]}  O-O {[%clk 0:02:27]} 7. O-O-O {[%clk 0:03:02]}  Re8 {[%clk 0:02:24]} 8. Nge2 {[%clk 0:03:01]}  d6 {[%clk 0:02:17]} 9. Bg5 {[%clk 0:02:59]}  h6 {[%clk 0:02:16]} 10. Bxf6 {[%clk 0:02:59]}  Qxf6 {[%clk 0:02:15]} 11. Nd5 {[%clk 0:03:00]}  Qd8 {[%clk 0:02:15]} 12. Nxb4 {[%clk 0:02:59]}  Nxb4 {[%clk 0:02:15]} 13. Qd2 {[%clk 0:03:00]}  Nc6 {[%clk 0:02:07]} 14. Nc3 {[%clk 0:02:59]}  Be6 {[%clk 0:02:05]} 15. Kb1 {[%clk 0:02:58]}  a6 {[%clk 0:02:05]} 16. f3 {[%clk 0:02:57]}  b5 {[%clk 0:02:06]} 17. g4 {[%clk 0:02:57]}  b4 {[%clk 0:01:56]} 18. Nd5 {[%clk 0:02:55]}  a5 {[%clk 0:01:54]} 19. h4 {[%clk 0:02:43]}  a4 {[%clk 0:01:50]} 20. Bb5 {[%clk 0:02:41]}  Bd7 {[%clk 0:01:42]} 21. Bxc6 {[%clk 0:02:33]}  Bxc6 {[%clk 0:01:43]} 22. Qxb4 {[%clk 0:02:32]}  Bxd5 {[%clk 0:01:39]} 23. Rxd5 {[%clk 0:02:33]}  a3 {[%clk 0:01:38]} 24. g5 {[%clk 0:02:11]}  h5 {[%clk 0:01:34]} 25. b3 {[%clk 0:02:02]}  Qe7 {[%clk 0:01:26]} 26. Rg1 {[%clk 0:01:55]}  c6 {[%clk 0:01:25]} 27. Rf5 {[%clk 0:01:45]}  g6 {[%clk 0:01:23]} 28. Ra5 {[%clk 0:01:36]}  Rxa5 {[%clk 0:00:58]} 29. Qxa5 {[%clk 0:01:37]}  d5 {[%clk 0:00:59]} 30. exd5 {[%clk 0:01:19]}  cxd5 {[%clk 0:00:54]} 31. Rd1 {[%clk 0:01:19]}  d4 {[%clk 0:00:35]} 32. Qa4 {[%clk 0:01:03]}  d3 {[%clk 0:00:30]} 33. Qc4 {[%clk 0:00:27]}  Qe5 {[%clk 0:00:26]} 34. c3 {[%clk 0:00:23]}  Qe2 {[%clk 0:00:26]} 0-1


[Site "https://www.chess.com"]

[Event "Late Titled Tuesday Blitz February 8 2022"]
[White "Ruiz Aguilar, Pablo Alexander"]
[Black "Einarsson, Halldor Gretar"]
[WhiteFideId "4401352"]
[BlackFideId "2300150"]
[WhiteElo "2125"]
[BlackElo "2114"]
[Result "1-0"]
[Round "04"]
[TimeControl "180+1"]
[Date "2022.02.09"]
[WhiteClock "0:01:47"]
[BlackClock "0:00:05"]

1. e4 {[%clk 0:03:00]}  e5 {[%clk 0:02:59]} 2. Nf3 {[%clk 0:03:00]}  Nc6 {[%clk 0:02:59]} 3. Bb5 {[%clk 0:03:00]}  Nf6 {[%clk 0:02:57]} 4. d3 {[%clk 0:03:00]}  Bc5 {[%clk 0:02:55]} 5. O-O {[%clk 0:03:00]}  d6 {[%clk 0:02:53]} 6. c3 {[%clk 0:03:00]}  O-O {[%clk 0:02:48]} 7. h3 {[%clk 0:02:58]}  h6 {[%clk 0:02:41]} 8. Bxc6 {[%clk 0:02:55]}  bxc6 {[%clk 0:02:40]} 9. d4 {[%clk 0:02:55]}  exd4 {[%clk 0:02:33]} 10. cxd4 {[%clk 0:02:56]}  Bb6 {[%clk 0:02:33]} 11. Nc3 {[%clk 0:02:56]}  Re8 {[%clk 0:02:24]} 12. Re1 {[%clk 0:02:56]}  Be6 {[%clk 0:01:47]} 13. Bf4 {[%clk 0:02:55]}  Qd7 {[%clk 0:01:39]} 14. Kh2 {[%clk 0:02:52]}  Rab8 {[%clk 0:01:35]} 15. Qd2 {[%clk 0:02:46]}  Kh7 {[%clk 0:01:17]} 16. Rad1 {[%clk 0:02:45]}  a6 {[%clk 0:01:06]} 17. b4 {[%clk 0:02:39]}  Nh5 {[%clk 0:01:01]} 18. Be3 {[%clk 0:02:37]}  f5 {[%clk 0:00:50]} 19. exf5 {[%clk 0:02:33]}  Bxf5 {[%clk 0:00:46]} 20. g4 {[%clk 0:02:34]}  Bxg4 {[%clk 0:00:45]} 21. hxg4 {[%clk 0:02:33]}  Qxg4 {[%clk 0:00:45]} 22. Ng1 {[%clk 0:02:23]}  Rf8 {[%clk 0:00:11]} 23. Qe2 {[%clk 0:01:47]}  Qh4+ {[%clk 0:00:05]} 24. Nh3 {[%clk 0:01:47]} 1-0


[Site "https://www.chess.com"]

[Event "Late Titled Tuesday Blitz February 8 2022"]
[White "Rustemov, Alexander"]
[Black "Suder, Jakub"]
[WhiteFideId "4119002"]
[BlackFideId "1195310"]
[WhiteElo "2811"]
[BlackElo "2058"]
[Result "1-0"]
[Round "04"]
[TimeControl "180+1"]
[Date "2022.02.09"]
[WhiteClock "0:00:44"]
[BlackClock "0:00:07"]

1. d4 {[%clk 0:02:46]}  d5 {[%clk 0:02:54]} 2. c4 {[%clk 0:02:46]}  e6 {[%clk 0:02:51]} 3. Nc3 {[%clk 0:02:43]}  a6 {[%clk 0:02:51]} 4. cxd5 {[%clk 0:02:42]}  exd5 {[%clk 0:02:51]} 5. Nf3 {[%clk 0:02:43]}  Nf6 {[%clk 0:02:51]} 6. Bg5 {[%clk 0:02:43]}  Be6 {[%clk 0:02:51]} 7. e3 {[%clk 0:02:43]}  Nbd7 {[%clk 0:02:51]} 8. Bd3 {[%clk 0:02:44]}  Bd6 {[%clk 0:02:51]} 9. Qc2 {[%clk 0:02:44]}  c6 {[%clk 0:02:51]} 10. Bf4 {[%clk 0:02:41]}  Qb8 {[%clk 0:02:51]} 11. Bxd6 {[%clk 0:02:40]}  Qxd6 {[%clk 0:02:51]} 12. h3 {[%clk 0:02:41]}  O-O {[%clk 0:02:49]} 13. O-O {[%clk 0:02:41]}  g6 {[%clk 0:02:45]} 14. Rab1 {[%clk 0:02:39]}  Nh5 {[%clk 0:02:44]} 15. b4 {[%clk 0:02:36]}  Ng7 {[%clk 0:02:44]} 16. Na4 {[%clk 0:02:30]}  Bf5 {[%clk 0:02:43]} 17. Nc5 {[%clk 0:02:28]}  Rab8 {[%clk 0:02:31]} 18. Rfc1 {[%clk 0:02:27]}  Bxd3 {[%clk 0:02:28]} 19. Qxd3 {[%clk 0:02:25]}  Nb6 {[%clk 0:02:23]} 20. Nd2 {[%clk 0:02:18]}  Nf5 {[%clk 0:02:06]} 21. a4 {[%clk 0:02:18]}  Qe7 {[%clk 0:01:57]} 22. b5 {[%clk 0:02:04]}  axb5 {[%clk 0:01:55]} 23. axb5 {[%clk 0:02:04]}  Nd6 {[%clk 0:01:55]} 24. bxc6 {[%clk 0:02:00]}  bxc6 {[%clk 0:01:56]} 25. Qc3 {[%clk 0:01:40]}  Nbc4 {[%clk 0:01:53]} 26. Nd3 {[%clk 0:01:34]}  Rfc8 {[%clk 0:01:38]} 27. Nf3 {[%clk 0:01:31]}  Rxb1 {[%clk 0:01:30]} 28. Rxb1 {[%clk 0:01:30]}  Nb5 {[%clk 0:01:31]} 29. Qb4 {[%clk 0:01:19]}  Qe4 {[%clk 0:01:25]} 30. Nc5 {[%clk 0:01:15]}  Qc2 {[%clk 0:01:22]} 31. Qb3 {[%clk 0:01:12]}  Qxb3 {[%clk 0:01:05]} 32. Nxb3 {[%clk 0:01:08]}  Ra8 {[%clk 0:01:03]} 33. Ra1 {[%clk 0:00:58]}  Rxa1+ {[%clk 0:01:00]} 34. Nxa1 {[%clk 0:00:59]}  Kf8 {[%clk 0:00:59]} 35. Nb3 {[%clk 0:01:00]}  Ke7 {[%clk 0:00:54]} 36. Kf1 {[%clk 0:01:00]}  Nc3 {[%clk 0:00:49]} 37. g4 {[%clk 0:00:59]}  h5 {[%clk 0:00:48]} 38. gxh5 {[%clk 0:00:57]}  gxh5 {[%clk 0:00:49]} 39. Nc5 {[%clk 0:00:56]}  f5 {[%clk 0:00:34]} 40. Nd3 {[%clk 0:00:56]}  Ne4 {[%clk 0:00:31]} 41. Kg2 {[%clk 0:00:50]}  Nf6 {[%clk 0:00:16]} 42. Nfe5 {[%clk 0:00:48]}  Nxe5 {[%clk 0:00:14]} 43. Nxe5 {[%clk 0:00:48]}  Kd6 {[%clk 0:00:12]} 44. Nd3 {[%clk 0:00:48]}  Ke6 {[%clk 0:00:09]} 45. Kf3 {[%clk 0:00:47]}  Kd6 {[%clk 0:00:06]} 46. Kf4 {[%clk 0:00:47]}  Ne4 {[%clk 0:00:06]} 47. f3 {[%clk 0:00:46]}  Nf2 {[%clk 0:00:07]} 48. Nxf2 {[%clk 0:00:44]} 1-0


[Site "https://www.chess.com"]

[Event "Late Titled Tuesday Blitz February 8 2022"]
[White "Sailer, Mike"]
[Black "Andrews, Todd"]
[WhiteFideId "2012901"]
[BlackFideId "2012456"]
[WhiteElo "2109"]
[BlackElo "2430"]
[Result "0-1"]
[Round "04"]
[TimeControl "180+1"]
[Date "2022.02.09"]
[WhiteClock "0:00:03"]
[BlackClock "0:00:40"]

1. d4 {[%clk 0:03:00]}  Nf6 {[%clk 0:02:59]} 2. Nf3 {[%clk 0:02:57]}  c5 {[%clk 0:02:59]} 3. c3 {[%clk 0:02:53]}  e6 {[%clk 0:02:54]} 4. g3 {[%clk 0:02:44]}  b6 {[%clk 0:02:41]} 5. Bg2 {[%clk 0:02:44]}  Bb7 {[%clk 0:02:42]} 6. O-O {[%clk 0:02:44]}  Be7 {[%clk 0:02:42]} 7. Bf4 {[%clk 0:02:39]}  O-O {[%clk 0:02:42]} 8. Nbd2 {[%clk 0:02:37]}  cxd4 {[%clk 0:02:37]} 9. cxd4 {[%clk 0:02:35]}  d6 {[%clk 0:02:38]} 10. Rc1 {[%clk 0:02:21]}  Nd5 {[%clk 0:02:35]} 11. e4 {[%clk 0:02:15]}  Nxf4 {[%clk 0:02:35]} 12. gxf4 {[%clk 0:02:15]}  Nd7 {[%clk 0:02:32]} 13. Qe2 {[%clk 0:01:59]}  Rc8 {[%clk 0:02:28]} 14. Rc3 {[%clk 0:01:59]}  Rxc3 {[%clk 0:02:18]} 15. bxc3 {[%clk 0:01:57]}  d5 {[%clk 0:02:14]} 16. e5 {[%clk 0:01:40]}  Qc8 {[%clk 0:02:10]} 17. Rc1 {[%clk 0:01:37]}  Ba6 {[%clk 0:02:10]} 18. Qe3 {[%clk 0:01:32]}  Bc4 {[%clk 0:02:05]} 19. f5 {[%clk 0:01:19]}  exf5 {[%clk 0:01:49]} 20. e6 {[%clk 0:01:18]}  Nf6 {[%clk 0:01:45]} 21. exf7+ {[%clk 0:01:14]}  Rxf7 {[%clk 0:01:45]} 22. Ne5 {[%clk 0:01:00]}  Ng4 {[%clk 0:01:41]} 23. Qe1 {[%clk 0:00:52]}  Bg5 {[%clk 0:01:32]} 24. Nxf7 {[%clk 0:00:48]}  Kxf7 {[%clk 0:01:27]} 25. Nxc4 {[%clk 0:00:44]}  Qxc4 {[%clk 0:01:25]} 26. Rc2 {[%clk 0:00:40]}  Qc7 {[%clk 0:01:12]} 27. Bxd5+ {[%clk 0:00:16]}  Kf8 {[%clk 0:01:10]} 28. f3 {[%clk 0:00:14]}  Ne3 {[%clk 0:01:05]} 29. Bb3 {[%clk 0:00:07]}  Nxc2 {[%clk 0:01:02]} 30. Bxc2 {[%clk 0:00:07]}  Bf4 {[%clk 0:00:53]} 31. Qe6 {[%clk 0:00:06]}  Bxh2+ {[%clk 0:00:50]} 32. Kh1 {[%clk 0:00:06]}  Qg3 {[%clk 0:00:47]} 33. Qxf5+ {[%clk 0:00:06]}  Ke7 {[%clk 0:00:47]} 34. Qe4+ {[%clk 0:00:05]}  Kd6 {[%clk 0:00:45]} 35. Qe3 {[%clk 0:00:03]}  Qh3 {[%clk 0:00:42]} 36. Bd3 {[%clk 0:00:03]}  Bf4+ {[%clk 0:00:40]} 0-1


[Site "https://www.chess.com"]

[Event "Late Titled Tuesday Blitz February 8 2022"]
[White "Silva, Kaua Marques"]
[Black "Araujo Filho, Luiz Antonio Coel"]
[WhiteFideId "22701168"]
[BlackFideId "2130661"]
[WhiteElo "2013"]
[BlackElo "2248"]
[Result "0-1"]
[Round "04"]
[TimeControl "180+1"]
[Date "2022.02.09"]
[WhiteClock "0:00:07"]
[BlackClock "0:01:36"]

1. d4 {[%clk 0:03:00]}  f5 {[%clk 0:02:59]} 2. Nc3 {[%clk 0:02:48]}  d5 {[%clk 0:02:58]} 3. Bg5 {[%clk 0:02:46]}  c6 {[%clk 0:02:55]} 4. e3 {[%clk 0:02:42]}  Qb6 {[%clk 0:02:53]} 5. Na4 {[%clk 0:02:39]}  Qa5+ {[%clk 0:02:49]} 6. c3 {[%clk 0:02:39]}  Nd7 {[%clk 0:02:48]} 7. Bd3 {[%clk 0:02:37]}  e6 {[%clk 0:02:45]} 8. b4 {[%clk 0:02:31]}  Qc7 {[%clk 0:02:43]} 9. Bf4 {[%clk 0:02:24]}  Bd6 {[%clk 0:02:40]} 10. Bxd6 {[%clk 0:02:20]}  Qxd6 {[%clk 0:02:41]} 11. Nf3 {[%clk 0:02:19]}  Ngf6 {[%clk 0:02:38]} 12. Nc5 {[%clk 0:02:14]}  O-O {[%clk 0:02:37]} 13. h3 {[%clk 0:02:09]}  b6 {[%clk 0:02:37]} 14. Nxd7 {[%clk 0:02:07]}  Nxd7 {[%clk 0:02:38]} 15. O-O {[%clk 0:01:57]}  e5 {[%clk 0:02:37]} 16. dxe5 {[%clk 0:01:56]}  Nxe5 {[%clk 0:02:38]} 17. Nxe5 {[%clk 0:01:56]}  Qxe5 {[%clk 0:02:38]} 18. Qb3 {[%clk 0:01:56]}  Kh8 {[%clk 0:02:34]} 19. Rac1 {[%clk 0:01:51]}  Be6 {[%clk 0:01:58]} 20. Be2 {[%clk 0:01:41]}  f4 {[%clk 0:01:55]} 21. c4 {[%clk 0:01:21]}  f3 {[%clk 0:01:46]} 22. Bxf3 {[%clk 0:01:16]}  Rxf3 {[%clk 0:01:44]} 23. gxf3 {[%clk 0:01:16]}  Bxh3 {[%clk 0:01:43]} 24. Kh1 {[%clk 0:00:07]}  Qh5 {[%clk 0:01:43]} 25. Kh2 {[%clk 0:00:07]}  Bxf1+ {[%clk 0:01:37]} 26. Kg3 {[%clk 0:00:07]}  Qg5+ {[%clk 0:01:36]} 27. Kh2 {[%clk 0:00:07]}  Qg2# {[%clk 0:01:36]} 0-1


[Site "https://www.chess.com"]

[Event "Late Titled Tuesday Blitz February 8 2022"]
[White "Solon, Nathan"]
[Black "Gledura, Benjamin"]
[WhiteFideId "2017229"]
[BlackFideId "712779"]
[WhiteElo "2547"]
[BlackElo "2747"]
[Result "1-0"]
[Round "04"]
[TimeControl "180+1"]
[Date "2022.02.09"]
[WhiteClock "0:01:01"]
[BlackClock "0:00:17"]

1. d4 {[%clk 0:03:00]}  Nf6 {[%clk 0:02:57]} 2. Bg5 {[%clk 0:03:00]}  d5 {[%clk 0:02:51]} 3. e3 {[%clk 0:03:00]}  Ne4 {[%clk 0:02:47]} 4. Bf4 {[%clk 0:03:00]}  c5 {[%clk 0:02:48]} 5. Bd3 {[%clk 0:03:00]}  cxd4 {[%clk 0:02:45]} 6. exd4 {[%clk 0:02:59]}  Nd7 {[%clk 0:02:38]} 7. Nf3 {[%clk 0:02:54]}  Ndf6 {[%clk 0:02:35]} 8. O-O {[%clk 0:02:52]}  e6 {[%clk 0:02:35]} 9. Ne5 {[%clk 0:02:42]}  a6 {[%clk 0:02:27]} 10. f3 {[%clk 0:02:35]}  Nd6 {[%clk 0:02:27]} 11. Nd2 {[%clk 0:02:31]}  Be7 {[%clk 0:02:19]} 12. c3 {[%clk 0:02:30]}  Nh5 {[%clk 0:02:09]} 13. Be3 {[%clk 0:02:26]}  g6 {[%clk 0:02:06]} 14. f4 {[%clk 0:02:20]}  f6 {[%clk 0:01:59]} 15. Nxg6 {[%clk 0:02:16]}  hxg6 {[%clk 0:01:53]} 16. Bxg6+ {[%clk 0:02:17]}  Kd7 {[%clk 0:01:53]} 17. Bxh5 {[%clk 0:02:17]}  Kc7 {[%clk 0:01:48]} 18. Bf3 {[%clk 0:02:13]}  Bd7 {[%clk 0:01:47]} 19. c4 {[%clk 0:02:09]}  dxc4 {[%clk 0:01:46]} 20. Rc1 {[%clk 0:02:05]}  b5 {[%clk 0:01:44]} 21. b3 {[%clk 0:02:02]}  Rc8 {[%clk 0:01:33]} 22. bxc4 {[%clk 0:02:01]}  Kb8 {[%clk 0:01:33]} 23. cxb5 {[%clk 0:01:48]}  Bxb5 {[%clk 0:01:32]} 24. Qb3 {[%clk 0:01:44]}  Qa5 {[%clk 0:01:23]} 25. Rxc8+ {[%clk 0:01:33]}  Rxc8 {[%clk 0:01:22]} 26. Rb1 {[%clk 0:01:32]}  Bd8 {[%clk 0:00:24]} 27. Qxe6 {[%clk 0:01:20]}  Bc7 {[%clk 0:00:23]} 28. Qd5 {[%clk 0:01:17]}  Ka7 {[%clk 0:00:23]} 29. Qc5+ {[%clk 0:01:06]}  Qb6 {[%clk 0:00:17]} 30. d5 {[%clk 0:01:03]}  Nf5 {[%clk 0:00:16]} 31. Qxb6+ {[%clk 0:01:01]}  Bxb6 {[%clk 0:00:17]} 32. Bxb6+ {[%clk 0:01:01]}  Kxb6 {[%clk 0:00:17]} 33. a4 {[%clk 0:01:01]} 1-0


[Site "https://www.chess.com"]

[Event "Late Titled Tuesday Blitz February 8 2022"]
[White "Song, Guannan Terry"]
[Black "Bernadskiy, Vitaliy"]
[WhiteFideId "2614189"]
[BlackFideId "14100371"]
[WhiteElo "2115"]
[BlackElo "2473"]
[Result "1-0"]
[Round "04"]
[TimeControl "180+1"]
[Date "2022.02.09"]
[WhiteClock "0:00:36"]
[BlackClock "0:00:13"]

1. e4 {[%clk 0:03:00]}  e6 {[%clk 0:02:59]} 2. d4 {[%clk 0:02:59]}  d5 {[%clk 0:03:00]} 3. Nc3 {[%clk 0:03:00]}  Bb4 {[%clk 0:02:59]} 4. exd5 {[%clk 0:03:00]}  exd5 {[%clk 0:02:58]} 5. Bd3 {[%clk 0:02:59]}  c6 {[%clk 0:02:57]} 6. a3 {[%clk 0:02:58]}  Bxc3+ {[%clk 0:02:56]} 7. bxc3 {[%clk 0:02:59]}  Ne7 {[%clk 0:02:57]} 8. Qh5 {[%clk 0:02:55]}  h6 {[%clk 0:02:52]} 9. Nf3 {[%clk 0:02:49]}  Nd7 {[%clk 0:02:52]} 10. Ne5 {[%clk 0:02:40]}  Nxe5 {[%clk 0:02:51]} 11. dxe5 {[%clk 0:02:38]}  Be6 {[%clk 0:02:36]} 12. O-O {[%clk 0:02:35]}  Qd7 {[%clk 0:02:36]} 13. Rb1 {[%clk 0:02:32]}  O-O-O {[%clk 0:02:29]} 14. Be3 {[%clk 0:02:28]}  g5 {[%clk 0:02:25]} 15. Qe2 {[%clk 0:02:16]}  Kb8 {[%clk 0:01:56]} 16. Bc5 {[%clk 0:02:04]}  Nc8 {[%clk 0:01:54]} 17. a4 {[%clk 0:02:00]}  Bf5 {[%clk 0:01:43]} 18. a5 {[%clk 0:01:54]}  Bxd3 {[%clk 0:01:42]} 19. cxd3 {[%clk 0:01:52]}  Rhe8 {[%clk 0:01:39]} 20. Rb3 {[%clk 0:01:46]}  f6 {[%clk 0:01:38]} 21. Rfb1 {[%clk 0:01:44]}  Rxe5 {[%clk 0:01:20]} 22. Rxb7+ {[%clk 0:01:42]}  Qxb7 {[%clk 0:01:19]} 23. Rxb7+ {[%clk 0:01:43]}  Kxb7 {[%clk 0:01:19]} 24. Qb2+ {[%clk 0:01:36]}  Ka6 {[%clk 0:01:15]} 25. g3 {[%clk 0:01:35]}  Ne7 {[%clk 0:01:02]} 26. d4 {[%clk 0:01:16]}  Re4 {[%clk 0:00:59]} 27. Qc2 {[%clk 0:01:11]}  Kb7 {[%clk 0:00:48]} 28. Qb1+ {[%clk 0:01:08]}  Ka8 {[%clk 0:00:48]} 29. Qd3 {[%clk 0:01:05]}  Kb7 {[%clk 0:00:38]} 30. Kg2 {[%clk 0:01:05]}  g4 {[%clk 0:00:37]} 31. h3 {[%clk 0:01:03]}  h5 {[%clk 0:00:37]} 32. c4 {[%clk 0:00:54]}  f5 {[%clk 0:00:29]} 33. a6+ {[%clk 0:00:48]}  Ka8 {[%clk 0:00:29]} 34. Qa3 {[%clk 0:00:45]}  Rd7 {[%clk 0:00:17]} 35. Qb4 {[%clk 0:00:37]}  dxc4 {[%clk 0:00:13]} 36. Bd6 {[%clk 0:00:36]} 1-0


[Site "https://www.chess.com"]

[Event "Late Titled Tuesday Blitz February 8 2022"]
[White "Sviridov, Valery"]
[Black "Shoker, Samy"]
[WhiteFideId "4120680"]
[BlackFideId "627143"]
[WhiteElo "2454"]
[BlackElo "2493"]
[Result "1-0"]
[Round "04"]
[TimeControl "180+1"]
[Date "2022.02.08"]
[WhiteClock "0:00:51"]
[BlackClock "0:00:13"]

1. Nf3 {[%clk 0:03:00]}  d6 {[%clk 0:02:59]} 2. d4 {[%clk 0:02:59]}  Nf6 {[%clk 0:02:59]} 3. c4 {[%clk 0:03:00]}  g6 {[%clk 0:02:59]} 4. g3 {[%clk 0:03:00]}  Bg7 {[%clk 0:02:59]} 5. Bg2 {[%clk 0:03:01]}  O-O {[%clk 0:02:59]} 6. O-O {[%clk 0:03:01]}  c6 {[%clk 0:03:00]} 7. Nc3 {[%clk 0:03:01]}  Qa5 {[%clk 0:02:59]} 8. h3 {[%clk 0:02:59]}  Qa6 {[%clk 0:02:59]} 9. Qd3 {[%clk 0:02:58]}  d5 {[%clk 0:02:51]} 10. Ne5 {[%clk 0:02:57]}  Bf5 {[%clk 0:02:50]} 11. Qd1 {[%clk 0:02:50]}  dxc4 {[%clk 0:02:48]} 12. e4 {[%clk 0:02:51]}  Bc8 {[%clk 0:02:42]} 13. Qe2 {[%clk 0:02:49]}  b5 {[%clk 0:02:38]} 14. a4 {[%clk 0:02:26]}  Nfd7 {[%clk 0:02:29]} 15. Nf3 {[%clk 0:02:22]}  Nb6 {[%clk 0:02:20]} 16. Bg5 {[%clk 0:02:18]}  b4 {[%clk 0:02:09]} 17. Na2 {[%clk 0:02:18]}  c3 {[%clk 0:01:53]} 18. Qc2 {[%clk 0:02:17]}  cxb2 {[%clk 0:01:51]} 19. Qxb2 {[%clk 0:02:16]}  Nxa4 {[%clk 0:01:23]} 20. Qxb4 {[%clk 0:02:15]}  c5 {[%clk 0:01:23]} 21. Qa3 {[%clk 0:02:06]}  Nc6 {[%clk 0:01:13]} 22. d5 {[%clk 0:02:04]}  Bxa1 {[%clk 0:01:03]} 23. Rxa1 {[%clk 0:02:05]}  Nb4 {[%clk 0:01:03]} 24. Nxb4 {[%clk 0:01:59]}  cxb4 {[%clk 0:01:00]} 25. Qxa4 {[%clk 0:01:47]}  Qxa4 {[%clk 0:00:59]} 26. Rxa4 {[%clk 0:01:48]}  a5 {[%clk 0:01:00]} 27. Bxe7 {[%clk 0:01:44]}  Bd7 {[%clk 0:01:00]} 28. Ra1 {[%clk 0:01:45]}  Rfe8 {[%clk 0:00:54]} 29. Bc5 {[%clk 0:01:34]}  Rxe4 {[%clk 0:00:54]} 30. Nd2 {[%clk 0:01:31]}  Re2 {[%clk 0:00:52]} 31. Ne4 {[%clk 0:01:32]}  Bf5 {[%clk 0:00:42]} 32. Nf6+ {[%clk 0:01:24]}  Kg7 {[%clk 0:00:42]} 33. d6 {[%clk 0:01:25]}  Rd8 {[%clk 0:00:37]} 34. Bd4 {[%clk 0:01:23]}  b3 {[%clk 0:00:25]} 35. g4 {[%clk 0:01:06]}  Bd3 {[%clk 0:00:20]} 36. Bf1 {[%clk 0:01:02]}  b2 {[%clk 0:00:20]} 37. Rd1 {[%clk 0:00:53]}  Rd2 {[%clk 0:00:15]} 38. Ne4+ {[%clk 0:00:51]}  Kg8 {[%clk 0:00:14]} 39. Nxd2 {[%clk 0:00:52]}  Bxf1 {[%clk 0:00:12]} 40. Kxf1 {[%clk 0:00:52]}  Rxd6 {[%clk 0:00:13]} 41. Bxb2 {[%clk 0:00:52]}  a4 {[%clk 0:00:13]} 42. Ke2 {[%clk 0:00:51]} 1-0


[Site "https://www.chess.com"]